fUSD/lending_fUSD_20251118
["ID","MTS","AMOUNT","RATE_DAILY","PERIOD"]
[394328177,1763457043110,-935.0,0.00017908,2]
[394328179,1763457043119,-505.25162148,0.00017945,2]
[394328181,1763457043128,-1298.18258,0.0001795,2]
[394328183,1763457043137,-420.0,0.00017964,2]
[394328185,1763457043146,-420.0,0.00017964,2]
[394328186,1763457043155,-1304.79,0.00017968,2]
[394328187,1763457043165,-1500.0,0.00017968,2]
[394328188,1763457043175,-1500.0,0.00017968,2]
[394328189,1763457043183,-1500.0,0.00017968,2]
[394328190,1763457043193,-1500.0,0.00017968,2]
[394328191,1763457043202,-1641.94948175,0.00017968,2]
[394328192,1763457043212,-592.99610824,0.00017968,2]
[394328193,1763457043221,-1500.0,0.00017968,2]
[394328194,1763457043229,-500.0,0.00017995,2]
[394328195,1763457043239,-300.0,0.00017999,2]
[394328196,1763457043249,-368.19186078,0.00017999,2]
[394328197,1763457043259,-142543.56726411,0.00018,2]
[394328198,1763457043268,-279904.32242804,0.00018,2]
[394328199,1763457043277,-267659.10411288,0.00018,2]
[394328200,1763457043286,-151.0,0.00018,2]
[394328201,1763457043295,-151.0,0.00018,2]
[394328202,1763457043304,-151.0,0.00018,2]
[394328203,1763457043314,-153.884434,0.00018,2]
[394328204,1763457043323,-151.0,0.00018,2]
[394328205,1763457043332,-151.0,0.00018,2]
[394328206,1763457043341,-153.680311,0.00018,2]
[394328208,1763457043351,-151.0,0.00018,2]
[394328209,1763457043360,-182.712364,0.00018,2]
[394328210,1763457043370,-238.13294,0.00018,2]
[394328211,1763457043379,-151.0,0.00018,2]
[394328212,1763457043388,-151.0,0.00018,2]
[394328213,1763457043397,-151.0,0.00018,2]
[394328214,1763457043407,-151.0,0.00018,2]
[394328215,1763457043417,-151.0,0.00018,2]
[394328216,1763457043428,-151.0,0.00018,2]
[394328217,1763457043449,-542.638418,0.00018,2]
[394328218,1763457043459,-542.638418,0.00018,2]
[394328219,1763457043468,-542.638418,0.00018,2]
[394328220,1763457043478,-542.638418,0.00018,2]
[394328221,1763457043488,-542.638418,0.00018,2]
[394328222,1763457043498,-542.638418,0.00018,2]
[394328223,1763457043507,-542.638418,0.00018,2]
[394328224,1763457043516,-542.638418,0.00018,2]
[394328225,1763457043525,-1680.0,0.00018053,2]
[394328226,1763457043535,-1500.0,0.00018068,2]
[394328227,1763457043543,-275.81,0.00018082,2]
[394328228,1763457043552,-500.0,0.00018132,2]
[394328229,1763457043561,-1304.79,0.00018242,2]
[394328230,1763457043571,-500.0,0.00018269,2]
[394328231,1763457043580,-5408.32,0.00018356,2]
[394328232,1763457043589,-283.63,0.00018373,2]
[394328233,1763457043598,-500.0,0.00018406,2]
[394328234,1763457043607,-166.66,0.00018421,2]
[394328235,1763457043616,-1304.79,0.00018516,2]
[394328236,1763457043625,-2000.0,0.00018516,2]
[394328237,1763457043635,-2000.0,0.00018516,2]
[394328238,1763457043644,-2000.0,0.00018516,2]
[394328239,1763457043653,-247.35908257,0.00018516,2]
[394328240,1763457043663,-2000.0,0.00018516,2]
[394328241,1763457043672,-500.0,0.00018543,2]
[394328242,1763457043682,-162.78564232,0.00018616,2]
[394328243,1763457043692,-300.0,0.00018649,2]
[394328244,1763457043701,-494.0,0.0001868,2]
[394328245,1763457043711,-275.81,0.0001876,2]
[394328246,1763457043720,-1304.79,0.0001879,2]
[394328247,1763457043730,-150.75,0.000188,2]
[394328248,1763457043740,-150.75,0.000188,2]
[394328249,1763457043750,-150.75,0.000188,2]
[394328250,1763457043759,-168.86,0.00018875,2]
[394328251,1763457043769,-262.95867868,0.00019,2]
[394328252,1763457043779,-3027.7960274,0.00019,2]
[394328253,1763457043788,-234.12612966,0.00019,2]
[394328254,1763457043798,-300.0,0.00019,2]
[394328255,1763457043807,-166.68,0.00019018,2]
[394328256,1763457043816,-1304.79,0.00019064,2]
[394328257,1763457043826,-1260.22802213,0.00019064,2]
[394328259,1763457043835,-526.53061575,0.00019064,2]
[394328261,1763457043849,-2500.0,0.00019064,2]
[394328262,1763457043858,-2633.9705709,0.00019064,2]
[394328263,1763457043868,-1589.0,0.00019084,2]
[394328264,1763457043877,-166.66,0.00019123,2]
[394328265,1763457043887,-14532.2176074,0.00019126,2]
[394328266,1763457043897,-245.5017752,0.00019126,2]
[394328267,1763457043907,-3378.21,0.00019178,2]
[394328268,1763457043917,-151.0,0.00019178,2]
[394328269,1763457043926,-151.0,0.00019178,2]
[394328270,1763457043936,-151.0,0.00019178,2]
[394328271,1763457043945,-151.0,0.00019178,2]
[394328272,1763457043955,-151.0,0.00019178,2]
[394328273,1763457043964,-151.0,0.00019178,2]
[394328274,1763457043973,-151.0,0.00019178,2]
[394328275,1763457043983,-151.0,0.00019178,2]
[394328276,1763457043993,-151.0,0.00019178,2]
[394328277,1763457044002,-151.0,0.00019178,2]
[394328278,1763457044014,-259.220377,0.00019178,2]
[394328279,1763457044023,-200.0,0.00019178,2]
[394328280,1763457044033,-283.63,0.00019248,2]
[394328281,1763457044042,-1304.79,0.00019338,2]
[394328283,1763457044052,-150.99,0.00019339,2]
[394328284,1763457044064,-299.99,0.00019339,7]
[394328285,1763457044075,-9999.99,0.00019339,2]
[394328286,1763457044084,-184.7048546,0.00019424,2]
[394328287,1763457044094,-275.81,0.00019438,2]
[394328288,1763457044103,-150.75,0.0001949,2]
[394328289,1763457044113,-19981.39061451,0.000195,7]
[394328290,1763457044123,-479.30025826,0.000195,7]
[394328291,1763457044132,-1304.79,0.00019612,2]
[394328292,1763457044142,-806.11906979,0.00019612,2]
[394328293,1763457044152,-587.0,0.00019631,2]
[394328294,1763457044161,-587.0,0.00019631,2]
[394328295,1763457044170,-1600.0,0.00019662,2]
[394328296,1763457044179,-1000.0,0.00019702,2]
[394328297,1763457044189,-3242.576042,0.00019724,2]
[394328298,1763457044198,-10068.18,0.00019726,2]
[394328299,1763457044208,-166.66,0.00019826,2]
[394328300,1763457044217,-2351.0,0.00019828,2]
[394328301,1763457044226,-400.0,0.00019863,2]
[394328302,1763457044235,-1304.90613713,0.00019886,2]
[394328303,1763457044246,-300.0,0.00019989,2]
[394328304,1763457044255,-152009.23666006,0.0001999,2]
[394328305,1763457044267,-156.477942,0.0001999,2]
[394328306,1763457044275,-151.0,0.0001999,2]
[394328307,1763457044284,-151.0,0.0001999,2]
[394328308,1763457044293,-151.0,0.0001999,2]
[394328309,1763457044302,-151.0,0.0001999,2]
[394328310,1763457044312,-542.638418,0.0001999,2]
[394328311,1763457044321,-542.638418,0.0001999,2]
[394328312,1763457044331,-542.638418,0.0001999,2]
[394328313,1763457044340,-542.638418,0.0001999,2]
[394328314,1763457044349,-300.0,0.00019999,2]
[394328315,1763457044358,-2157.81858888,0.0002,4]
[394328316,1763457044367,-100595.3079487,0.0002,5]
[394328317,1763457044377,-275.81,0.00020116,2]
[394328318,1763457044386,-283.63,0.00020123,2]
[394328319,1763457044395,-843.4,0.00020187,2]
[394328320,1763457044405,-1593.0,0.00020344,2]
[394328321,1763457044414,-151.0,0.00020548,2]
[394328322,1763457044423,-151.0,0.00020548,2]
[394328323,1763457044432,-151.0,0.00020548,2]
[394328324,1763457044441,-151.0,0.00020548,2]
[394328325,1763457044451,-198.543062,0.00020548,2]
[394328326,1763457044460,-198.543062,0.00020548,2]
[394328327,1763457044470,-198.543062,0.00020548,2]
[394328328,1763457044479,-198.543062,0.00020548,2]
[394328329,1763457044488,-198.543062,0.00020548,2]
[394328330,1763457044498,-198.543062,0.00020548,2]
[394328331,1763457044507,-198.543062,0.00020548,2]
[394328332,1763457044516,-198.543062,0.00020548,2]
[394328333,1763457044527,-198.543062,0.00020548,2]
[394328334,1763457044536,-198.543062,0.00020548,2]
[394328335,1763457044547,-198.543062,0.00020548,2]
[394328336,1763457044556,-198.543062,0.00020548,2]
[394328337,1763457044566,-198.543062,0.00020548,2]
[394328338,1763457044575,-198.543062,0.00020548,2]
[394328339,1763457044584,-198.543062,0.00020548,2]
[394328340,1763457044594,-198.543062,0.00020548,2]
[394328341,1763457044604,-211.74376832,0.00020548,2]
[394328342,1763457044612,-2000.0,0.000207,2]
[394328343,1763457044622,-275.81,0.00020795,2]
[394328344,1763457044632,-283.63,0.00020998,2]
[394328345,1763457044642,-350.0,0.00021,2]
[394328346,1763457044652,-438.49567533,0.00021014,2]
[394328347,1763457044662,-823.0,0.00021454,2]
[394328348,1763457044672,-823.0,0.00021454,2]
[394328349,1763457044682,-263.04,0.00021464,2]
[394328350,1763457044692,-1600.0,0.00021628,2]
[394328351,1763457044703,-1000.0,0.00021672,2]
[394328352,1763457044713,-3292.0,0.00021777,2]
[394328353,1763457044723,-283.63,0.00021873,2]
[394328354,1763457044732,-5000.0,0.00021918,2]
[394328355,1763457044742,-221.83959775,0.00021989,14]
[394328356,1763457044753,-10946.59,0.00022,7]
[394328357,1763457044764,-868.344002,0.00022,4]
[394328358,1763457044774,-216.63,0.00022,2]
[394328359,1763457044783,-687.623,0.00022089,2]
[394328360,1763457044793,-1318.0,0.00022089,2]
[394328361,1763457044802,-2467.5,0.00022161,2]
[394328362,1763457044812,-821.0,0.00022172,2]
[394328363,1763457044823,-1599.0,0.00022172,2]
[394328364,1763457044832,-793.0,0.00022172,2]
[394328365,1763457044845,-1276.0,0.00022172,2]
[394328366,1763457044854,-916.35,0.00022177,2]
[394328367,1763457044865,-1191.0,0.00022177,2]
[394328368,1763457044874,-1604.0,0.00022177,2]
[394328369,1763457044883,-705.0,0.00022177,2]
[394328370,1763457044892,-3020.954,0.00022177,2]
[394328371,1763457044902,-561.0,0.00022177,2]
[394328372,1763457044912,-184.7048546,0.00022198,2]
[394328373,1763457044925,-161.3,0.0002232,2]
[394328374,1763457044934,-283.63,0.00022747,2]
[394328375,1763457044944,-400.0,0.00023,2]
[394328376,1763457044954,-1152.0,0.00023446,2]
[394328377,1763457044964,-1152.0,0.00023446,2]
[394328378,1763457044974,-1600.0,0.00023594,2]
[394328379,1763457044986,-283.63,0.00023622,2]
[394328380,1763457044996,-1000.0,0.00023643,2]
[394328381,1763457045006,-4670.14709467,0.00023786,2]
[394328382,1763457045016,-540.0,0.00023897,2]
[394328383,1763457045026,-800.0,0.00023908,2]
[394328384,1763457045036,-4609.0,0.00023918,2]
[394328385,1763457045046,-479.30025826,0.00023942,2]
[394328386,1763457045056,-540.0,0.00023981,2]
[394328387,1763457045065,-800.0,0.00023992,2]
[394328388,1763457045074,-540.0,0.00024064,2]
[394328389,1763457045083,-800.0,0.00024076,2]
[394328390,1763457045093,-540.0,0.00024148,2]
[394328391,1763457045102,-800.0,0.00024159,2]
[394328392,1763457045112,-605.18,0.00024225,30]
[394328393,1763457045121,-569.78300073,0.00024232,2]
[394328394,1763457045131,-800.0,0.00024243,2]
[394328395,1763457045140,-2000.0,0.000244,2]
[394328396,1763457045150,-216.63,0.00024465,2]
[394328397,1763457045159,-300.0,0.00024657,2]
[394328398,1763457045168,-1000.0,0.00024658,2]
[394328399,1763457045178,-151.0,0.00024658,7]
[394328400,1763457045188,-156.33392,0.00024658,7]
[394328401,1763457045197,-153.475917,0.00024658,7]
[394328402,1763457045206,-151.0,0.00024658,7]
[394328403,1763457045215,-151.0,0.00024658,7]
[394328404,1763457045224,-167.241826,0.00024658,7]
[394328405,1763457045235,-151.0,0.00024658,7]
[394328406,1763457045244,-151.0,0.00024658,7]
[394328407,1763457045253,-161.316406,0.00024658,7]
[394328408,1763457045264,-151.0,0.00024658,7]
[394328409,1763457045273,-151.0,0.00024658,7]
[394328410,1763457045283,-151.0,0.00024658,7]
[394328411,1763457045292,-151.0,0.00024658,7]
[394328412,1763457045301,-151.0,0.00024658,7]
[394328413,1763457045311,-241.054873,0.00024658,7]
[394328414,1763457045321,-151.0,0.00024658,7]
[394328415,1763457045330,-153.950084,0.00024658,7]
[394328416,1763457045339,-151.0,0.00024658,7]
[394328417,1763457045348,-153.658481,0.00024658,7]
[394328418,1763457045358,-151.0,0.00024658,7]
[394328419,1763457045368,-181.176105,0.00024658,7]
[394328420,1763457045377,-210.461063,0.00024658,7]
[394328421,1763457045387,-151.0,0.00024658,7]
[394328422,1763457045396,-151.0,0.00024658,7]
[394328423,1763457045406,-151.0,0.00024658,7]
[394328424,1763457045415,-151.0,0.00024658,7]
[394328425,1763457045424,-151.0,0.00024658,7]
[394328426,1763457045434,-151.0,0.00024658,7]
[394328427,1763457045443,-227.518854,0.00024658,7]
[394328428,1763457045453,-151.0,0.00024658,7]
[394328429,1763457045463,-151.0,0.00024658,7]
[394328430,1763457045472,-155.407535,0.00024658,7]
[394328431,1763457045482,-151.0,0.00024658,7]
[394328432,1763457045491,-151.0,0.00024658,7]
[394328433,1763457045500,-151.0,0.00024658,7]
[394328434,1763457045510,-151.0,0.00024658,7]
[394328435,1763457045519,-153.81117,0.00024658,7]
[394328436,1763457045528,-156.98453,0.00024658,7]
[394328437,1763457045537,-160.541637,0.00024658,7]
[394328438,1763457045547,-151.0,0.00024658,7]
[394328439,1763457045556,-151.0,0.00024658,7]
[394328440,1763457045565,-151.0,0.00024658,7]
[394328441,1763457045574,-151.0,0.00024658,7]
[394328442,1763457045584,-151.0,0.00024658,7]
[394328443,1763457045593,-151.0,0.00024658,7]
[394328444,1763457045602,-151.0,0.00024658,7]
[394328445,1763457045611,-155.403392,0.00024658,7]
[394328446,1763457045621,-151.0,0.00024658,7]
[394328447,1763457045633,-151.0,0.00024658,7]
[394328448,1763457045642,-151.0,0.00024658,7]
[394328449,1763457045652,-163.779553,0.00024658,7]
[394328450,1763457045661,-151.0,0.00024658,7]
[394328451,1763457045671,-151.0,0.00024658,7]
[394328452,1763457045680,-151.0,0.00024658,7]
[394328453,1763457045690,-151.0,0.00024658,7]
[394328454,1763457045700,-151.0,0.00024658,7]
[394328455,1763457045709,-151.0,0.00024658,7]
[394328456,1763457045718,-151.0,0.00024658,7]
[394328457,1763457045727,-228.970783,0.00024658,7]
[394328458,1763457045737,-151.0,0.00024658,7]
[394328459,1763457045747,-151.0,0.00024658,7]
[394328460,1763457045759,-151.0,0.00024658,7]
[394328461,1763457045781,-151.0,0.00024658,7]
[394328462,1763457045798,-151.0,0.00024658,7]
[394328463,1763457045809,-158.424728,0.00024658,7]
[394328464,1763457045818,-151.0,0.00024658,7]
[394328465,1763457045828,-151.0,0.00024658,7]
[394328466,1763457045838,-151.0,0.00024658,7]
[394328467,1763457045850,-153.172445,0.00024658,7]
[394328468,1763457045860,-151.0,0.00024658,7]
[394328469,1763457045870,-156.128847,0.00024658,7]
[394328470,1763457045880,-151.0,0.00024658,7]
[394328471,1763457045891,-157.282444,0.00024658,7]
[394328472,1763457046045,-151.0,0.00024658,7]
[394328473,1763457046055,-151.0,0.00024658,7]
[394328474,1763457046066,-151.0,0.00024658,7]
[394328475,1763457046077,-151.0,0.00024658,7]
[394328476,1763457046087,-151.0,0.00024658,7]
[394328477,1763457046096,-151.0,0.00024658,7]
[394328478,1763457046105,-151.0,0.00024658,7]
[394328479,1763457046115,-151.0,0.00024658,7]
[394328480,1763457046124,-151.0,0.00024658,7]
[394328481,1763457046135,-151.0,0.00024658,7]
[394328482,1763457046144,-151.0,0.00024658,7]
[394328483,1763457046154,-151.0,0.00024658,7]
[394328484,1763457046163,-151.0,0.00024658,7]
[394328485,1763457046173,-151.0,0.00024658,7]
[394328486,1763457046183,-151.0,0.00024658,7]
[394328487,1763457046192,-151.0,0.00024658,7]
[394328488,1763457046201,-151.0,0.00024658,7]
[394328489,1763457046211,-151.0,0.00024658,7]
[394328490,1763457046220,-151.0,0.00024658,7]
[394328491,1763457046230,-151.0,0.00024658,7]
[394328492,1763457046239,-151.0,0.00024658,7]
[394328493,1763457046251,-151.0,0.00024658,7]
[394328494,1763457046261,-151.0,0.00024658,7]
[394328495,1763457046270,-151.0,0.00024658,7]
[394328496,1763457046279,-151.0,0.00024658,7]
[394328497,1763457046289,-151.0,0.00024658,7]
[394328498,1763457046299,-151.0,0.00024658,7]
[394328499,1763457046309,-151.0,0.00024658,7]
[394328500,1763457046318,-151.0,0.00024658,7]
[394328501,1763457046327,-151.0,0.00024658,7]
[394328502,1763457046337,-235.18396,0.00024658,7]
[394328503,1763457046346,-161.465081,0.00024658,7]
[394328504,1763457046355,-153.672158,0.00024658,7]
[394328505,1763457046364,-153.68657,0.00024658,7]
[394328506,1763457046373,-151.0,0.00024658,7]
[394328507,1763457046382,-160.058195,0.00024658,7]
[394328508,1763457046392,-151.0,0.00024658,7]
[394328509,1763457046401,-151.0,0.00024658,7]
[394328510,1763457046410,-151.0,0.00024658,7]
[394328511,1763457046420,-158.940876,0.00024658,7]
[394328512,1763457046429,-151.0,0.00024658,7]
[394328513,1763457046438,-151.0,0.00024658,7]
[394328514,1763457046448,-151.0,0.00024658,7]
[394328515,1763457046456,-295.384899,0.00024658,7]
[394328516,1763457046466,-151.0,0.00024658,7]
[394328517,1763457046476,-151.0,0.00024658,7]
[394328518,1763457046487,-151.0,0.00024658,7]
[394328519,1763457046497,-151.0,0.00024658,7]
[394328520,1763457046507,-151.0,0.00024658,7]
[394328521,1763457046517,-151.0,0.00024658,7]
[394328522,1763457046526,-151.0,0.00024658,7]
[394328523,1763457046535,-235.110002,0.00024658,7]
[394328524,1763457046545,-151.0,0.00024658,7]
[394328525,1763457046554,-151.0,0.00024658,7]
[394328526,1763457046563,-151.0,0.00024658,7]
[394328527,1763457046573,-151.0,0.00024658,7]
[394328528,1763457046582,-151.0,0.00024658,7]
[394328529,1763457046592,-190.190065,0.00024658,7]
[394328530,1763457046601,-155.236232,0.00024658,7]
[394328531,1763457046610,-151.0,0.00024658,7]
[394328532,1763457046619,-151.0,0.00024658,7]
[394328533,1763457046628,-151.0,0.00024658,7]
[394328534,1763457046637,-151.0,0.00024658,7]
[394328535,1763457046646,-151.0,0.00024658,7]
[394328536,1763457046655,-151.0,0.00024658,7]
[394328537,1763457046665,-151.0,0.00024658,7]
[394328538,1763457046675,-151.0,0.00024658,7]
[394328539,1763457046684,-151.0,0.00024658,7]
[394328540,1763457046693,-270.79735,0.00024658,7]
[394328541,1763457046703,-151.0,0.00024658,7]
[394328542,1763457046712,-156.876504,0.00024658,7]
[394328543,1763457046721,-151.0,0.00024658,7]
[394328544,1763457046730,-151.0,0.00024658,7]
[394328545,1763457046740,-151.0,0.00024658,7]
[394328546,1763457046749,-151.0,0.00024658,7]
[394328547,1763457046758,-151.0,0.00024658,7]
[394328549,1763457046769,-151.0,0.00024658,7]
[394328551,1763457046778,-151.0,0.00024658,7]
[394328552,1763457046787,-151.0,0.00024658,7]
[394328553,1763457046797,-200.227909,0.00024658,7]
[394328554,1763457046806,-200.227909,0.00024658,7]
[394328555,1763457046815,-200.227909,0.00024658,7]
[394328556,1763457046825,-200.227909,0.00024658,7]
[394328557,1763457046834,-200.227909,0.00024658,7]
[394328558,1763457046847,-200.227909,0.00024658,7]
[394328560,1763457046856,-151.0,0.00024658,7]
[394328561,1763457046866,-151.0,0.00024658,7]
[394328562,1763457046875,-200.227909,0.00024658,7]
[394328563,1763457046885,-151.0,0.00024658,7]
[394328564,1763457046895,-200.227909,0.00024658,7]
[394328565,1763457046905,-151.0,0.00024658,7]
[394328566,1763457046915,-179.426696,0.00024658,7]
[394328567,1763457046925,-151.0,0.00024658,7]
[394328568,1763457046936,-200.227909,0.00024658,7]
[394328569,1763457046947,-151.0,0.00024658,7]
[394328570,1763457046956,-200.227909,0.00024658,7]
[394328571,1763457046966,-298.44475063,0.00024658,7]
[394328572,1763457046975,-151.0,0.00024658,7]
[394328573,1763457046984,-200.227909,0.00024658,7]
[394328574,1763457046993,-151.0,0.00024658,7]
[394328575,1763457047002,-200.227909,0.00024658,7]
[394328576,1763457047011,-151.0,0.00024658,7]
[394328577,1763457047020,-151.0,0.00024658,7]
[394328578,1763457047030,-200.227909,0.00024658,7]
[394328580,1763457047039,-151.0,0.00024658,7]
[394328581,1763457047050,-200.227909,0.00024658,7]
[394328582,1763457047060,-151.0,0.00024658,7]
[394328583,1763457047069,-200.227909,0.00024658,7]
[394328584,1763457047079,-151.0,0.00024658,7]
[394328585,1763457047090,-200.227909,0.00024658,7]
[394328586,1763457047099,-151.0,0.00024658,7]
[394328587,1763457047109,-151.0,0.00024658,7]
[394328588,1763457047120,-151.0,0.00024658,7]
[394328589,1763457047130,-151.0,0.00024658,7]
[394328590,1763457047140,-151.0,0.00024658,7]
[394328591,1763457047149,-151.0,0.00024658,7]
[394328592,1763457047158,-151.0,0.00024658,7]
[394328593,1763457047167,-151.0,0.00024658,7]
[394328594,1763457047176,-151.0,0.00024658,7]
[394328595,1763457047186,-151.0,0.00024658,7]
[394328596,1763457047195,-262.930837,0.00024658,7]
[394328597,1763457047204,-301.932835,0.00024658,7]
[394328598,1763457047213,-151.0,0.00024658,7]
[394328599,1763457047222,-151.0,0.00024658,7]
[394328600,1763457047231,-151.0,0.00024658,7]
[394328601,1763457047240,-151.0,0.00024658,7]
[394328602,1763457047249,-151.0,0.00024658,7]
[394328603,1763457047259,-151.0,0.00024658,7]
[394328604,1763457047268,-151.0,0.00024658,7]
[394328605,1763457047277,-285.330623,0.00024658,7]
[394328606,1763457047286,-151.0,0.00024658,7]
[394328607,1763457047295,-151.0,0.00024658,7]
[394328608,1763457047304,-151.0,0.00024658,7]
[394328609,1763457047313,-151.0,0.00024658,7]
[394328610,1763457047321,-151.0,0.00024658,7]
[394328611,1763457047331,-151.0,0.00024658,7]
[394328612,1763457047339,-151.0,0.00024658,7]
[394328613,1763457047348,-265.852755,0.00024658,7]
[394328614,1763457047357,-1034.891128,0.00024658,7]
[394328615,1763457047366,-1034.891128,0.00024658,7]
[394328616,1763457047376,-1034.891128,0.00024658,7]
[394328617,1763457047385,-1034.891128,0.00024658,7]
[394328618,1763457047395,-1034.891128,0.00024658,7]
[394328619,1763457047404,-1034.891128,0.00024658,7]
[394328620,1763457047413,-1034.891128,0.00024658,7]
[394328621,1763457047422,-1034.891128,0.00024658,7]
[394328622,1763457047433,-1034.891128,0.00024658,7]
[394328623,1763457047444,-1034.891128,0.00024658,7]
[394328624,1763457047455,-1034.891128,0.00024658,7]
[394328625,1763457047464,-1034.891128,0.00024658,7]
[394328626,1763457047473,-1034.891128,0.00024658,7]
[394328627,1763457047482,-1034.891128,0.00024658,7]
[394328628,1763457047493,-1034.891128,0.00024658,7]
[394328629,1763457047503,-1034.891128,0.00024658,7]
[394328630,1763457047512,-151.0,0.00024658,7]
[394328631,1763457047521,-151.0,0.00024658,7]
[394328632,1763457047530,-151.0,0.00024658,7]
[394328633,1763457047539,-151.0,0.00024658,7]
[394328634,1763457047549,-151.0,0.00024658,7]
[394328635,1763457047560,-151.0,0.00024658,7]
[394328636,1763457047571,-151.0,0.00024658,7]
[394328637,1763457047581,-162.368402,0.00024658,7]
[394328638,1763457047590,-155.852573,0.00024658,7]
[394328639,1763457047599,-151.0,0.00024658,7]
[394328640,1763457047608,-151.0,0.00024658,7]
[394328641,1763457047617,-151.0,0.00024658,7]
[394328642,1763457047628,-151.0,0.00024658,7]
[394328643,1763457047638,-151.0,0.00024658,7]
[394328644,1763457047647,-151.0,0.00024658,7]
[394328645,1763457047656,-151.0,0.00024658,7]
[394328646,1763457047666,-151.0,0.00024658,7]
[394328647,1763457047675,-151.0,0.00024658,7]
[394328648,1763457047685,-151.0,0.00024658,7]
[394328649,1763457047694,-151.0,0.00024658,7]
[394328650,1763457047703,-151.0,0.00024658,7]
[394328651,1763457047713,-151.0,0.00024658,7]
[394328652,1763457047721,-151.0,0.00024658,7]
[394328653,1763457047731,-188.70561,0.00024658,7]
[394328654,1763457047740,-151.0,0.00024658,7]
[394328655,1763457047749,-151.0,0.00024658,7]
[394328656,1763457047758,-188.70561,0.00024658,7]
[394328657,1763457047767,-188.70561,0.00024658,7]
[394328658,1763457047777,-249.822632,0.00024658,7]
[394328659,1763457047786,-151.0,0.00024658,7]
[394328660,1763457047795,-188.70561,0.00024658,7]
[394328661,1763457047804,-151.0,0.00024658,7]
[394328662,1763457047813,-151.0,0.00024658,7]
[394328663,1763457047823,-188.70561,0.00024658,7]
[394328664,1763457047832,-151.0,0.00024658,7]
[394328665,1763457047846,-151.0,0.00024658,7]
[394328666,1763457047856,-188.70561,0.00024658,7]
[394328667,1763457047866,-188.70561,0.00024658,7]
[394328668,1763457047876,-151.0,0.00024658,7]
[394328669,1763457047887,-151.0,0.00024658,7]
[394328670,1763457047896,-188.70561,0.00024658,7]
[394328671,1763457047906,-219.0,0.00024658,7]
[394328672,1763457047915,-151.0,0.00024658,7]
[394328673,1763457047926,-151.0,0.00024658,7]
[394328674,1763457047936,-188.70561,0.00024658,7]
[394328675,1763457047946,-188.70561,0.00024658,7]
[394328676,1763457047955,-151.0,0.00024658,7]
[394328677,1763457047964,-188.70561,0.00024658,7]
[394328678,1763457047973,-151.0,0.00024658,7]
[394328679,1763457047982,-188.70561,0.00024658,7]
[394328680,1763457047992,-151.0,0.00024658,7]
[394328681,1763457048001,-151.0,0.00024658,7]
[394328682,1763457048011,-188.70561,0.00024658,7]
[394328683,1763457048021,-188.70561,0.00024658,7]
[394328684,1763457048030,-168.061494,0.00024658,7]
[394328685,1763457048040,-151.0,0.00024658,7]
[394328686,1763457048049,-188.70561,0.00024658,7]
[394328687,1763457048058,-168.061494,0.00024658,7]
[394328688,1763457048071,-151.0,0.00024658,7]